[Event "Prague Festival-Masters 2022"]
[Site "Prague"]
[Date "2022.06.08"]
[Round "1.5"]
[White "Harikrishna, Pentala"]
[Black "Vidit, Santosh Gujrathi"]
[Result "1-0"]
[ECO "E48"]
[WhiteElo "2705"]
[BlackElo "2723"]
[Annotator "TA"]
[PlyCount "75"]
[EventDate "2022.06.07"]
[EventType "tourn"]
[EventCountry "CZE"]
[SourceTitle "playchess.com"]
[Source "ChessBase"]
[SourceQuality "1"]
[TimeControl "40/5400+30:1800+30"]

{[%evp 11,75,0,0,-16,-14,-8,-6,-22,-15,-21,-22,-25,-14,-27,-25,-28,-24,-77,-70,-106,-32,-37,-25,-37,-56,-39,18,14,60,53,65,69,56,96,46,65,122,93,102,99,170,151,162,149,229,234,245,247,260,185,252,248,325,306,385,320,308,285,478,444,495,520,681,679,715,679]} 1. d4 {[%emt 0:00:03]} Nf6 {[%emt 0:00:32]} 2. c4 {[%emt 0:00:06]} e6 {[%emt 0:00:14]} 3. Nc3 {[%emt 0:00:05]} Bb4 {[%emt 0:00:26]} 4. e3 {[%emt 0:00:09]} O-O {[%emt 0:00:21]} 5. Bd3 {[%emt 0:00:10]} d5 {[%emt 0:00:46]} 6. cxd5 {[%emt 0:00:21]} exd5 {[%emt 0:00:22]} 7. a3 {[%emt 0:00:15] E48: Nimzo-Indian: Rubinstein: 5 Bd3 d5 including 6 Ne2, but excluding 6 a3.} Bd6 {[%emt 0:01:07]} 8. Qc2 {[%emt 0:00:08]} c6 {[%emt 0:02:29][%cal Bc7c6,Bc6c5,Bc5b4][%mdl 32]} 9. Nge2 {[%emt 0:00:53] The position is equal.} Re8 {[%emt 0:00:36]} 10. Bd2 {[%emt 0:01:31]} b6 {[%emt 0:01:45]} 11. f3 {[%emt 0:19:07]} c5 {[%emt 0:01:15] [#]} 12. b4 $146 {[%emt 0:03:32]} ({Predecessor:} 12. g4 c4 13. Bf5 Bxf5 14. Qxf5 g6 15. Qg5 Nc6 16. O-O Bf8 17. Qh4 h6 18. Rad1 {1-0 (58) Firouzja,A (2804)-Dominguez Perez,L (2753) Bucharest 2022}) 12... cxb4 {[%emt 0:43:34]} 13. Nb5 {[%emt 0:08:03]} bxa3 {[%emt 0:01:54]} 14. e4 {[%emt 0:02:37]} (14. O-O $11 Ba6 15. Nxd6 Qxd6 16. Bxa6 Nxa6 17. Rfb1) 14... dxe4 $17 {[%emt 0:02:38]} 15. fxe4 {[%emt 0:00:06]} Ba6 {[%emt 0:06:06]} ({Black should try} 15... Bg4 $17 {aiming for ...Bxe2.} 16. e5 Bf8) 16. e5 $15 {[%emt 0:08:53] [#]} Bxe5 {[%emt 0:01:19]} 17. dxe5 {[%emt 0:00:08]} Rxe5 {[%emt 0:00:23]} 18. Bc3 $1 {[%emt 0:00:48]} Nc6 {[%emt 0:07:02]} ({Black should play} 18... Bxb5 $15 19. Bxe5 Qxd3 20. Qxd3 Bxd3) 19. Rd1 $36 {[%emt 0:09:53][%mdl 2048] White is pushing.} ({But not} 19. Rxa3 $2 Bxb5 20. Bxb5 (20. Bxe5 $2 Nb4 $19) 20... Rxb5 $19) ({Wrong is} 19. Bxe5 $2 Nb4 20. O-O-O (20. Bxh7+ $2 Nxh7 21. Qe4 Nd3+ 22. Kf1 Bxb5 $19) 20... Nxc2 21. Bxh7+ Kxh7 $19) 19... Qe7 {[%emt 0:08:08]} (19... Rg5 $11 {was preferrable.}) 20. Bxe5 $14 {[%emt 0:08:53]} Nxe5 {[%emt 0:00:07]} 21. O-O {[%emt 0:02:44]} Nxd3 {[%emt 0:13:20]} 22. Qxd3 {[%emt 0:00:22]} Qc5+ {[%emt 0:00:19]} 23. Ned4 {[%emt 0:00:24] Rf5 is the strong threat.} Rd8 {[%emt 0:00:23] Black is on the road to losing.} (23... a2 $1 $14) 24. Rfe1 $16 {[%emt 0:09:22][%cal Od3a3]} a2 {[%emt 0:00:07]} (24... Bxb5 $2 25. Qxb5 Rxd4 26. Re8+ Nxe8 27. Qxe8+ Qf8 28. Qxf8+ Kxf8 29. Rxd4 $18) 25. Qc3 {[%emt 0:08:07]} h6 {[%emt 0:00:52]} (25... g6 $16) 26. Qxc5 $18 {[%emt 0:02:59]} bxc5 {[%emt 0:00:05]} 27. Nc7 {[%emt 0:01:02]} Bc4 {[%emt 0:02:11]} (27... Rxd4 $2 28. Rxd4 cxd4 29. Nxa6 $18) (27... cxd4 $16 28. Nxa6 d3) 28. Nc6 {[%emt 0:04:51][%csl LRa7,LRd8]} Rxd1 {[%emt 0:01:10]} 29. Rxd1 {[%emt 0:00:05]} Bd3 {[%emt 0:04:53] [#] Hoping for ...Bb1.} 30. Ra1 {[%emt 0:00:06]} Bb1 {[%emt 0:00:05]} (30... Be4 {is a better defense.}) 31. Kf2 {[%emt 0:03:27]} Ng4+ {[%emt 0:00:53]} 32. Ke2 {[%emt 0:00:46]} Nxh2 {[%emt 0:00:28]} 33. Ne5 {[%emt 0:02:29]} f6 {[%emt 0:00:31]} 34. Nc4 {[%emt 0:00:18]} Be4 $2 {[%emt 0:00:37]} (34... Nf1 {was necessary.} 35. Na3 Ng3+ 36. Ke1 Bg6 37. Rxa2 Bf7) 35. Ne3 {[%emt 0:02:18] White is clearly winning.} f5 {[%emt 0:00:29]} 36. Rxa2 {[%emt 0:00:27]} g5 {[%emt 0:00:15]} 37. Ncd5 {[%emt 0:01:36]} Kf7 {[%emt 0:00:46] Prevents Nf6.} 38. Nc3 {[%emt 0:00:36] Weighted Error Value: White=0.07 (flawless) /Black=0.39} 1-0

[Event "Prague Festival-Masters 2022"]
[Site "Prague"]
[Date "2022.06.09"]
[Round "2.1"]
[White "Navara, David"]
[Black "Nguyen, Thai Dai Van"]
[Result "1/2-1/2"]
[ECO "C00"]
[WhiteElo "2682"]
[BlackElo "2612"]
[Annotator "TA"]
[PlyCount "89"]
[EventDate "2022.06.07"]
[EventType "tourn"]
[EventCountry "CZE"]
[SourceTitle "playchess.com"]
[Source "ChessBase"]
[SourceQuality "1"]
[TimeControl "40/5400+30:1800+30"]

{[%evp 16,89,0,-4,-4,-28,0,-20,-5,-30,-19,-13,-14,-10,-13,-6,0,-25,-21,-41,-36,-33,0,0,0,0,6,17,20,0,0,0,0,0,0,0,0,-104,-118,-109,-103,-104,0,0,0,0,0,0,0,0,0,0,0,0,0,0,0,0,0,0,0,0,0,0,0,0,0,0,0,0,0,0,0,0,0,0]} 1. e4 {[%emt 0:00:01]} c5 {[%emt 0:00:36]} 2. Nf3 {[%emt 0:00:09]} e6 {[%emt 0:00:08]} 3. g3 {[%emt 0:03:25]} Nc6 {[%emt 0:02:15]} 4. Bg2 {[%emt 0:00:06]} Nf6 {[%emt 0:04:17]} 5. d3 {[%emt 0:04:18]} d5 {[%emt 0:06:46]} 6. Qe2 {[%emt 0:05:05]} Be7 {[%emt 0:01:12]} 7. O-O {[%emt 0:00:10]} O-O {[%emt 0:02:11]} 8. e5 {[%emt 0:00:09]} Nd7 {[%emt 0:00:06]} 9. c4 {[%emt 0:00:16]} a6 {[%emt 0:02:20] C00: French: Unusual White 2nd moves.} 10. h4 {[%emt 0:09:08]} h6 {[%emt 0:11:26]} 11. Bf4 {[%emt 0:07:30]} b5 {[%emt 0:03:52] [#]} 12. Rd1 $146 {[%emt 0:08:23]} ({Predecessor:} 12. cxd5 exd5 13. e6 Nf6 14. exf7+ Rxf7 15. Ne5 Nxe5 16. Qxe5 Qd7 17. Nc3 Bb7 18. d4 {½-½ (56) Mazurek,J (1662)-Tarka,A (1715) Warsaw 2019}) 12... Nb6 {[%emt 0:05:06][%cal Rb5c4]} 13. b3 {[%emt 0:06:56]} Ra7 {[%emt 0:08:49]} 14. Nbd2 {[%emt 0:06:52][%cal Bb1d2,Bd2f1,Bf1h2,Bh2g4,Bg4e3][%mdl 32]} Rd7 {[%emt 0:00:07]} 15. Nf1 {[%emt 0:00:11]} Bb7 {[%emt 0:14:17]} 16. N1h2 {[%emt 0:06:17]} bxc4 {[%emt 0:01:32]} (16... dxc4 {looks sharper.} 17. dxc4 Rxd1+ 18. Rxd1 Qa8) 17. dxc4 {[%emt 0:01:10]} dxc4 {[%emt 0:10:05]} 18. bxc4 {[%emt 0:00:20]} Rxd1+ {[%emt 0:00:26]} 19. Rxd1 {[%emt 0:00:10]} Qa8 {[%emt 0:02:04]} (19... Nd4 $2 20. Nxd4 Bxg2 21. Nf5 $18) 20. Ng4 {[%emt 0:07:23][%cal Og4h6] [#] Threatens to win with Nxh6+!} h5 {[%emt 0:08:23]} 21. Ne3 {[%emt 0:01:13]} g6 {[%emt 0:01:27]} 22. Bg5 {[%emt 0:07:52]} Bxg5 {[%emt 0:02:19]} 23. hxg5 {[%emt 0:00:17]} Rd8 {[%emt 0:02:21]} 24. g4 {[%emt 0:14:16]} h4 {[%emt 0:01:27]} 25. Rxd8+ {[%emt 0:07:34]} Qxd8 {[%emt 0:00:02]} 26. Nxh4 {[%emt 0:00:11]} (26. Qd2 $1 $11 {remains equal.}) 26... Nd4 $17 {[%emt 0:00:30]} 27. Qb2 {[%emt 0:00:26]} Bxg2 {[%emt 0:00:26]} 28. Kxg2 {[%emt 0:00:12]} Nxc4 {[%emt 0:06:18]} 29. Nxc4 $11 {[%emt 0:00:08] Black must now prevent Nd6. The position is equal.} Qd5+ {[%emt 0:00:02]} 30. Kh2 {[%emt 0:04:30]} Qxc4 {[%emt 0:00:02][%mdl 4096] Endgame KQN-KQN} 31. Qb8+ $1 {[%emt 0:00:07]} Kg7 {[%emt 0:00:04]} 32. Nxg6 $1 {[%emt 0:00:26]} Nf3+ {[%emt 0:03:52][%mdl 64] [#] Discovered Attack} 33. Kg3 {[%emt 0:00:10] Intending Qh8+ and mate.} Nxg5 {[%emt 0:00:05]} 34. Qh8+ {[%emt 0:00:24]} Kxg6 {[%emt 0:00:02]} 35. Qh5+ {[%emt 0:00:14]} Kg7 {[%emt 0:00:02] ( -> ...Qc3+)} 36. Qxg5+ {[%emt 0:00:09] KQ-KQ} Kf8 {[%emt 0:00:27]} 37. Qd8+ {[%emt 0:00:23]} Kg7 {[%emt 0:00:00]} 38. Qg5+ {[%emt 0:01:02]} Kf8 {[%emt 0:00:01]} 39. Qd8+ {[%emt 0:00:08]} Kg7 {[%emt 0:00:05]} 40. f4 {[%emt 0:00:00]} Qe4 {[%emt 0:00:00] And now ...Qe3+ would win.} 41. Qf6+ {[%emt 0:04:21]} Kg8 {[%emt 0:02:38]} 42. Qg5+ {[%emt 0:01:04]} Kf8 {[%emt 0:00:33]} 43. Qd8+ {[%emt 0:00:09]} Kg7 {[%emt 0:00:01] ...Qe3+ is the strong threat.} 44. Qf6+ {[%emt 0:00:10]} Kg8 {[%emt 0:00:05]} 45. Qg5+ {[%emt 0:01:03] Weighted Error Value: White=0.08 (flawless) /Black=0.06 (flawless)} 1/2-1/2

[Event "Prague Festival-Masters 2022"]
[Site "Prague"]
[Date "2022.06.09"]
[Round "2.2"]
[White "Maghsoodloo, Parham"]
[Black "Le, Quang Liem"]
[Result "1/2-1/2"]
[ECO "E11"]
[WhiteElo "2699"]
[BlackElo "2709"]
[Annotator "TA"]
[PlyCount "71"]
[EventDate "2022.06.07"]
[EventType "tourn"]
[EventCountry "CZE"]
[SourceTitle "playchess.com"]
[Source "ChessBase"]
[SourceQuality "1"]
[TimeControl "40/5400+30:1800+30"]

{[%evp 11,71,16,17,12,12,10,22,13,8,14,29,-4,6,-30,7,7,9,15,23,34,46,31,22,39,26,14,25,0,0,0,0,0,0,0,0,0,0,0,0,0,0,0,0,0,0,0,0,0,0,-13,-10,-24,-59,-183,-24,-26,-10,-10,-10,-30,-29,-58]} 1. d4 {[%emt 0:00:05]} Nf6 {[%emt 0:00:11]} 2. c4 {[%emt 0:00:06]} e6 {[%emt 0:00:08]} 3. Nf3 {[%emt 0:00:04]} d5 {[%emt 0:00:10]} 4. g3 {[%emt 0:00:07]} Bb4+ {[%emt 0:00:19]} 5. Bd2 {[%emt 0:00:07]} a5 {[%emt 0:00:10]} 6. Bg2 {[%emt 0:00:06]} O-O {[%emt 0:00:10]} 7. Qc1 {[%emt 0:00:02] E11: Bogo-Indian.} Be7 {[%emt 0:01:08] 7...Nbd7 is the recent fashion.} 8. O-O {[%emt 0:00:20]} Nbd7 {[%emt 0:00:27]} 9. Bf4 {[%emt 0:01:21] The position is equal.} c6 {[%emt 0:00:11]} 10. Rd1 {[%emt 0:00:06]} b6 {[%emt 0:01:56][%cal Bb7b6,Bb6b5][%mdl 32] [#]} 11. Nc3 $146 {[%emt 0:10:47]} ({Predecessor:} 11. Ne5 Bb7 12. cxd5 cxd5 13. Nc6 Bxc6 14. Qxc6 Rc8 15. Qb5 Nh5 16. Bd2 Nhf6 17. Nc3 Ne8 18. Qd3 Nd6 19. b3 f5 20. Rac1 Nf6 21. Nb5 Qd7 22. Nxd6 {½-½ (22) Gelfand,B (2663)-Cheparinov,I (2664) Warsaw 2021}) 11... Ba6 {[%emt 0:01:55]} 12. b3 {[%emt 0:03:05][%cal Bb2b3,Bb3c4][%mdl 32]} Rc8 {[%emt 0:01:09]} 13. e4 {[%emt 0:03:21]} dxc4 {[%emt 0:03:06]} 14. Bf1 $1 {[%emt 0:00:52]} b5 {[%emt 0:01:18]} 15. bxc4 {[%emt 0:00:19]} b4 {[%emt 0:14:12]} 16. e5 {[%emt 0:00:37]} bxc3 {[%emt 0:00:27]} 17. exf6 {[%emt 0:00:07]} Bxf6 {[%emt 0:00:08]} 18. Ne5 {[%emt 0:16:12]} c5 $1 {[%emt 0:11:50]} 19. Qxc3 {[%emt 0:18:45]} Qc7 {[%emt 0:08:53] Hoping for ...cxd4.} 20. Ng6 {[%emt 0:10:38]} cxd4 {[%emt 0:00:13]} 21. Qa3 {[%emt 0:09:35]} e5 {[%emt 0:01:42]} 22. Nxf8 {[%emt 0:00:09]} Nxf8 {[%emt 0:06:44]} 23. Bd2 {[%emt 0:00:03]} Bb7 $1 {[%emt 0:00:11]} 24. Qxa5 {[%emt 0:02:05]} Qc6 {[%emt 0:01:50][%csl Gb7][%cal Rc6h1] [#]} 25. Qd5 {[%emt 0:00:02] Prevents Qh1+.} Qc7 $1 {[%emt 0:00:10]} 26. Qa5 {[%emt 0:00:22]} Qc6 $36 {[%emt 0:00:13][%csl Gb7][%cal Rc6h1][%mdl 2048] Black has the initiative.} 27. Qd5 {[%emt 0:00:04] Prevents Qh1+. Threatens to win with Bg2.} Qc7 $1 {[%emt 0:00:07]} 28. Qb5 {[%emt 0:07:28]} Bc6 {[%emt 0:00:14]} 29. Qa5 {[%emt 0:00:02] And now Qxc7 would win.} Qd7 {[%emt 0:00:12]} 30. Re1 {[%emt 0:00:54]} Ng6 {[%emt 0:02:03][%cal Og6h4][%mdl 1024] ...Nh4! is the strong threat. Black has compensation.} 31. Qa3 {[%emt 0:04:45]} e4 {[%emt 0:02:27][%cal Og6h4] Prevents Qd3. Strongly threatening ...Nh4!} 32. Rad1 {[%emt 0:05:49] [#]} ({White has to play} 32. Bg2 $1 $15) 32... Ne5 $2 {[%emt 0:19:06]} (32... Nh4 $1 $19 {[%mdl 512]} 33. gxh4 e3) 33. Bg2 $11 {[%emt 0:00:05]} (33. Be2 $2 e3 34. fxe3 d3 $19) 33... e3 {[%emt 0:01:06]} 34. fxe3 {[%emt 0:00:58]} ({Don't blunder} 34. Bxc6 $2 Qxc6 35. fxe3 Nf3+ 36. Kf2 Qe4 37. exd4 (37. Qa6 $2 Rd8 $19) 37... Nxe1 38. Rxe1 Bxd4+ 39. Be3 Rxc4 $19) 34... Nf3+ {[%emt 0:00:40]} ({Don't play} 34... Nxc4 35. Bxc6 Qxc6 36. Qb3 $14) 35. Bxf3 {[%emt 0:01:35]} Bxf3 {[%emt 0:00:03]} 36. Qd3 {[%emt 0:07:27] Weighted Error Value: White=0.08 (flawless) /Black=0.11 (very precise)} 1/2-1/2

[Event "Prague Festival-Masters 2022"]
[Site "Prague"]
[Date "2022.06.09"]
[Round "2.3"]
[White "Vallejo Pons, Francisco"]
[Black "Harikrishna, Pentala"]
[Result "1/2-1/2"]
[ECO "C54"]
[WhiteElo "2704"]
[BlackElo "2705"]
[Annotator "TA"]
[PlyCount "65"]
[EventDate "2022.06.07"]
[EventType "tourn"]
[EventCountry "CZE"]
[SourceTitle "playchess.com"]
[Source "ChessBase"]
[SourceQuality "1"]
[TimeControl "40/5400+30:1800+30"]

{[%evp 10,65,14,16,16,8,35,0,13,6,16,10,10,16,20,14,19,17,10,0,31,0,0,0,30,29,30,6,4,0,15,12,29,9,34,19,32,43,41,35,43,32,37,29,32,14,22,33,41,22,20,27,11,2,60,31,85,36]} 1. e4 {[%emt 0:00:05]} e5 {[%emt 0:00:07]} 2. Nf3 {[%emt 0:00:05]} Nc6 {[%emt 0:00:04]} 3. Bc4 {[%emt 0:00:06]} Bc5 {[%emt 0:00:27]} 4. d3 {[%emt 0:00:09]} Nf6 {[%emt 0:00:19]} 5. O-O {[%emt 0:00:11]} d6 {[%emt 0:00:35]} 6. c3 {[%emt 0:01:44]} a5 {[%emt 0:00:55] C54: Giuoco Piano: 4 c3 Nf6, main lines with 5 d4 and 5 d3.} 7. Re1 {[%emt 0:03:23]} Ba7 {[%emt 0:01:27]} 8. Na3 {[%emt 0:04:52]} h6 {[%emt 0:00:18] The position is equal.} 9. Nb5 {[%emt 0:06:10]} Bb6 {[%emt 0:00:12]} 10. Be3 {[%emt 0:00:21]} Bxe3 {[%emt 0:01:27]} 11. Rxe3 {[%emt 0:00:04]} O-O {[%emt 0:00:47] [#]} 12. a4 $146 {[%emt 0:01:59]} ({Predecessor:} 12. d4 Bg4 13. h3 Bxf3 14. Qxf3 a4 15. Rd1 Qe7 16. Na3 Na5 17. Bb5 Nc6 18. Nc2 {1-0 (37) Volokitin,A (2681)-Matlakov,M (2674) Chess.com INT 2022}) 12... Bg4 {[%emt 0:21:14][%cal Bc8g4,Bg4h5,Bh5g6,Bg6h7][%mdl 32]} 13. h3 {[%emt 0:05:16]} Bh5 {[%emt 0:00:46]} 14. Ba2 {[%emt 0:22:30]} Kh8 {[%emt 0:19:05]} 15. Qc2 {[%emt 0:05:46]} (15. g4 $5 {[%cal Rg4h5]} Bg6 16. Qe2 $11) 15... Bg6 {[%emt 0:05:01]} 16. Rd1 {[%emt 0:11:24]} Na7 {[%emt 0:05:43]} 17. Nxa7 {[%emt 0:03:26]} Rxa7 {[%emt 0:00:14]} 18. Nh4 {[%emt 0:05:00]} Bh7 {[%emt 0:02:18][%cal Of6e4]} 19. g3 {[%emt 0:27:29]} Ra8 {[%emt 0:39:01]} 20. Kh2 {[%emt 0:00:00]} c6 {[%emt 0:00:00]} 21. Qe2 {[%emt 0:00:00]} Qe7 {[%emt 0:00:00]} 22. Ng2 {[%emt 0:00:00]} b5 {[%emt 0:00:00]} 23. axb5 {[%emt 0:00:00]} cxb5 {[%emt 0:00:00]} 24. Qd2 {[%emt 0:00:00]} Rab8 {[%emt 0:00:00]} 25. Re2 {[%emt 0:00:00]} b4 {[%emt 0:00:00]} 26. Bc4 {[%emt 0:00:00]} Nd7 {[%emt 0:00:00]} 27. Ra1 {[%emt 0:00:00]} Nb6 {[%emt 0:00:00]} 28. Bb5 {[%emt 0:00:00]} bxc3 {[%emt 0:00:00]} 29. bxc3 {[%emt 0:00:00]} d5 {[%emt 0:00:00]} 30. Rxa5 {[%emt 0:00:00] Black must now prevent exd5.} dxe4 {[%emt 0:00:13]} 31. dxe4 {[%emt 0:00:00]} Qc5 {[%emt 0:05:47] Against c4} (31... Rfd8 $11 32. Qa2 f6) 32. c4 $14 {[%emt 0:00:00]} Rbd8 {[%emt 0:00:00]} (32... Rfd8 $14 33. Qc3 Ra8) 33. Qa2 {[%emt 0:01:02] Weighted Error Value: White=0.07 (flawless) /Black=0.13 (very precise)} (33. Qc3 $16) 1/2-1/2

[Event "Prague Festival-Masters 2022"]
[Site "Prague"]
[Date "2022.06.09"]
[Round "2.4"]
[White "Shankland, Sam"]
[Black "Salem, A.R. Saleh"]
[Result "1-0"]
[ECO "B90"]
[WhiteElo "2718"]
[BlackElo "2690"]
[Annotator "TA"]
[PlyCount "125"]
[EventDate "2022.06.07"]
[EventType "tourn"]
[EventCountry "CZE"]
[SourceTitle "playchess.com"]
[Source "ChessBase"]
[SourceQuality "1"]
[TimeControl "40/5400+30:1800+30"]

{[%evp 20,125,34,11,1,16,33,17,40,34,45,45,47,43,45,44,41,51,44,47,46,48,44,43,44,43,61,47,45,36,54,55,65,58,57,53,60,51,68,68,68,68,68,51,52,54,62,42,56,51,54,47,53,46,48,48,46,42,71,45,48,48,51,47,53,52,63,48,41,6,27,16,17,19,18,21,62,60,61,67,61,59,105,105,141,50,53,0,141,141,295,214,197,174,255,216,189,186,710,701,620,526,1312,828,5760,5760,29995,29996]} 1. e4 {[%emt 0:00:30]} c5 {[%emt 0:00:30]} 2. Nf3 {[%emt 0:00:00]} d6 {[%emt 0:00:00]} 3. d4 {[%emt 0:00:00]} cxd4 {[%emt 0:00:00]} 4. Nxd4 {[%emt 0:00:00]} Nf6 {[%emt 0:00:00]} 5. Nc3 {[%emt 0:00:00]} a6 {[%emt 0:00:00]} 6. Be3 {[%emt 0:00:02]} Ng4 {[%emt 0:00:00]} 7. Bg5 {[%emt 0:00:19]} h6 {[%emt 0:00:00]} 8. Bh4 {[%emt 0:00:05]} g5 {[%emt 0:00:01]} 9. Bg3 {[%emt 0:00:03]} Bg7 {[%emt 0:00:05]} 10. h3 {[%emt 0:00:06]} Ne5 {[%emt 0:00:06]} 11. Nf5 $1 {[%emt 0:00:10] 11.Nf5 scores better than 11.f3.} Bxf5 {[%emt 0:01:42] B90: Sicilian Najdorf: Unusual White 6th moves, 6 Be3 Ng4 and 6 Be3 e5.} 12. exf5 {[%emt 0:00:51]} Nbd7 {[%emt 0:00:26]} 13. Be2 {[%emt 0:01:02]} Rc8 {[%emt 0:01:47] The position is equal.} 14. O-O {[%emt 0:00:21]} O-O {[%emt 0:00:05]} 15. Re1 {[%emt 0:01:18]} Nf6 {[%emt 0:00:17]} 16. Bxe5 {[%emt 0:01:03]} dxe5 {[%emt 0:00:22]} 17. Bd3 {[%emt 0:00:23] [#]} Qc7 $146 {[%emt 0:13:10]} ({Predecessor:} 17... Qb6 18. Rb1 Rfd8 19. Qf3 Rd4 20. Ne4 Rcd8 21. b3 Qc7 22. a4 Kf8 23. Rbc1 R8d7 {½-½ (44) Kireev,S (2422)-Roques,P (2326) LSS email 2017}) 18. Ne4 {[%emt 0:14:19]} Rfd8 {[%emt 0:00:48]} 19. Qf3 {[%emt 0:02:12]} Rd7 {[%emt 0:05:34]} 20. c3 {[%emt 0:18:21]} Qb6 {[%emt 0:06:08]} 21. Rab1 {[%emt 0:03:58]} Qa5 {[%emt 0:07:13]} 22. a3 {[%emt 0:02:27]} Qb6 {[%emt 0:00:06]} 23. Re2 {[%emt 0:03:24]} Kf8 {[%emt 0:09:52]} 24. Rbe1 {[%emt 0:12:05]} Qb3 {[%emt 0:04:22]} 25. Bc2 {[%emt 0:02:46]} Qb5 {[%emt 0:04:43]} (25... Qxb2 26. Ba4 Qxa3 27. Bxd7 Nxd7 28. Nxg5 $1 $16) 26. g3 {[%emt 0:04:00]} Nxe4 {[%emt 0:04:32]} (26... Qxb2 27. Ba4 Qxa3 28. Bxd7 Nxd7 29. Nxg5 $1 $16) 27. Bxe4 {[%emt 0:01:13][%cal Oa3a4]} Bf6 {[%emt 0:01:16]} 28. Rc2 {[%emt 0:02:50]} Qb3 {[%emt 0:01:42]} 29. Rd1 {[%emt 0:01:31]} Rcd8 {[%emt 0:02:08]} 30. Rxd7 {[%emt 0:00:27]} Rxd7 {[%emt 0:00:02]} 31. Kg2 {[%emt 0:04:22]} b5 {[%emt 0:09:44]} 32. Qe2 {[%emt 0:08:20]} Qa4 {[%emt 0:00:28]} 33. Bf3 {[%emt 0:01:23]} Rd6 {[%emt 0:06:42]} 34. Qe4 {[%emt 0:04:27]} Qb3 {[%emt 0:02:37]} 35. Re2 {[%emt 0:01:01]} Kg7 {[%emt 0:01:44]} 36. Qc2 {[%emt 0:01:33]} Qc4 {[%emt 0:04:50]} 37. Re3 {[%emt 0:01:37]} (37. g4 {is interesting.} Qf4 38. Bb7 Qc4 39. Re3) 37... Qa2 {[%emt 0:01:33]} 38. Re4 {[%emt 0:01:05]} Qd5 {[%emt 0:05:34]} 39. a4 {[%emt 0:01:05]} (39. Rd4 $5 {[%cal Rd4d5]} Qc5 40. Rxd6 exd6 41. Qd3 $14) 39... Qc5 {[%emt 0:01:43]} 40. axb5 {[%emt 0:00:00]} axb5 {[%emt 0:00:00]} 41. Qe2 {[%emt 0:05:16]} e6 {[%emt 0:39:08]} 42. fxe6 {[%emt 0:04:16]} Rxe6 {[%emt 0:00:00]} 43. Re3 {[%emt 0:02:07]} b4 {[%emt 0:00:00]} 44. Be4 {[%emt 0:00:55]} Bd8 {[%emt 0:01:30]} 45. c4 {[%emt 0:07:13]} Rf6 {[%emt 0:00:00]} (45... Bb6 {with more complications.} 46. Rf3 Qd6 47. b3 Rf6) 46. Bf3 {[%emt 0:01:02]} Bc7 {[%emt 0:00:00]} 47. b3 {[%emt 0:01:21]} Bb6 {[%emt 0:00:00]} 48. Rxe5 {[%emt 0:00:42]} Qd4 {[%emt 0:00:00]} 49. Rd5 {[%emt 0:01:19][%cal Be5d5,Bd5d3,Bd3d6,Bd6b6,Bb6b7][%mdl 32]} Qc3 {[%emt 0:00:00]} 50. Rd3 {[%emt 0:04:22]} Qc1 {[%emt 0:00:00]} (50... Qa1 $14) 51. Qd2 $16 {[%emt 0:08:23]} Qb1 {[%emt 0:00:00]} 52. Qd1 {[%emt 0:02:03]} (52. Rd6 $1 $16 {[%cal Rd6f6] Strongly threatening Rxf6.} Rxf3 53. Kxf3 Qh1+ 54. Ke2 (54. Kg4 Qe4+) 54... Qe4+ 55. Kd1 Qb1+ 56. Ke2 Qe4+ 57. Kd1 Qf3+ 58. Kc2 Bxf2 59. Rd3) 52... Qb2 $14 {[%emt 0:00:00]} 53. Qd2 {[%emt 0:01:12]} (53. Rd2 $14 Qc3 54. Bd5) 53... Qb1 $16 {[%emt 0:00:00]} 54. Rd6 $1 $36 {[%emt 0:01:35][%mdl 2048] aiming for Rxf6. Keeping Black busy.} Rxf3 {[%emt 0:00:00] This move loses the game for Black.} (54... Qxb3 $2 55. Rxf6 Kxf6 56. Qd6+ Kg7 57. Qxb6 $18) (54... Qa1 $16 {keeps fighting.} 55. Rxf6 (55. Qxb4 Rxd6 56. Qxd6 Qd4 $16) 55... Qxf6 56. Qxb4 Bd4) 55. Rxb6 {[%emt 0:00:13][%mdl 4096] Endgame KQR-KQR. Chess con chili.} Qe4 {[%emt 0:00:48] Inhibits Qd4+. ( -> ...Rd3+)} 56. Kh2 {[%emt 0:00:24]} ({Not} 56. Qb2+ f6 57. Qa1 Kg6 $11) 56... Qf5 {[%emt 0:03:38]} (56... Qe5 $142) 57. Qd4+ $1 $18 {[%emt 0:00:30]} f6 {[%emt 0:01:16]} 58. Kg2 {[%emt 0:00:16]} (58. Rxb4 Rxf2+) ({Worse is} 58. Rb7+ Kg6 59. Kg2 Rd3 $11) 58... Rxb3 $2 {[%emt 0:00:37] [#]} (58... Rd3 59. Rxf6 Rxd4 60. Rxf5 Rd3) 59. Rb7+ $1 {[%emt 0:00:56]} Kg6 {[%emt 0:00:01] [#]} 60. Qa7 $1 {[%emt 0:00:27] Intending Rg7+ and mate.} Qe4+ {[%emt 0:01:05]} 61. Kh2 {[%emt 0:00:02] White threatens Rg7+ and mate.} Qxc4 {[%emt 0:00:29]} 62. Rg7+ {[%emt 0:01:00]} Kh5 {[%emt 0:00:16]} 63. Qe7 {[%emt 0:01:05] Weighted Error Value: White=0.08 (flawless) /Black=0.28 (precise)} 1-0